bitfinex/quotes_BTCUSD_20241216
["timestamp","ask_amount","ask_price","bid_price","bid_amount"]
[1734342427757,0.2211915,104670.0,104660.0,1.3504858]
[1734342429020,0.2211915,104670.0,104660.0,1.28850255]
[1734342429233,0.2211915,104670.0,104660.0,1.3504858]
[1734342430917,0.2211915,104670.0,104660.0,1.28850255]
[1734342431342,0.2211915,104670.0,104660.0,1.3504858]
[1734342433707,0.2211915,104670.0,104660.0,1.28850255]
[1734342434276,0.1269008,104670.0,104660.0,1.3504858]
[1734342434998,0.1269008,104670.0,104660.0,1.43581352]
[1734342435587,0.1269008,104670.0,104660.0,1.37383027]
[1734342436014,0.1269008,104670.0,104660.0,1.43581352]
[1734342437291,0.1269008,104670.0,104660.0,1.3504858]
[1734342443917,0.1269008,104670.0,104660.0,1.18541793]
[1734342448982,0.1269008,104670.0,104660.0,1.12343468]
[1734342451496,0.1269008,104670.0,104660.0,1.06145143]
[1734342451927,0.1269008,104670.0,104660.0,1.12343468]
[1734342452344,0.2211915,104670.0,104660.0,1.12343468]
[1734342453171,0.2211915,104670.0,104660.0,1.06145143]
[1734342454877,0.2211915,104670.0,104660.0,1.12343468]
[1734342456145,0.2211915,104670.0,104660.0,1.18541793]
[1734342457010,0.2211915,104670.0,104660.0,1.12343468]
[1734342463351,8e-07,104670.0,104660.0,1.63181446]
[1734342463604,8e-07,104670.0,104660.0,1.95674293]
[1734342463806,8e-07,104670.0,104660.0,1.79706741]
[1734342464244,8e-07,104670.0,104660.0,1.86660224]
[1734342464447,8e-07,104670.0,104660.0,1.93873355]
[1734342464672,8e-07,104670.0,104660.0,2.00416154]
[1734342465012,8.64e-05,104710.0,104700.0,0.076408]
[1734342465195,8.64e-05,104710.0,104700.0,0.49858867]
[1734342465399,8.64e-05,104710.0,104700.0,0.73411692]
[1734342466076,8.64e-05,104710.0,104700.0,0.79900758]
[1734342466279,8.64e-05,104710.0,104700.0,0.62845539]
[1734342466625,0.00014268,104710.0,104700.0,0.62845539]
[1734342467197,0.00014268,104710.0,104700.0,0.50054125]
[1734342468217,0.00014268,104710.0,104700.0,0.41526516]
[1734342468845,0.00014268,104710.0,104700.0,0.32083658]
[1734342472361,0.00014268,104710.0,104700.0,0.09442858]
[1734342472567,0.00014268,104710.0,104700.0,0.09538351]
[1734342472771,0.00014268,104710.0,104700.0,0.17179151]
[1734342474411,0.00014268,104710.0,104700.0,0.32179151]
[1734342474565,0.00014268,104710.0,104700.0,0.32083658]
[1734342479187,0.08144268,104710.0,104700.0,0.32083658]
[1734342481883,0.22263338,104710.0,104700.0,0.226408]
[1734342483184,0.22263338,104710.0,104700.0,0.32083658]
[1734342485972,0.22263338,104710.0,104700.0,0.3503803]
[1734342488347,0.00014268,104710.0,104700.0,0.35268837]
[1734342488564,0.00014268,104710.0,104700.0,0.35499644]
[1734342489205,0.00014268,104710.0,104700.0,0.35508274]
[1734342489644,0.00014268,104710.0,104700.0,0.3504666]
[1734342492808,0.00014268,104710.0,104700.0,0.36026709]
[1734342493007,0.00014268,104710.0,104700.0,0.3504666]
[1734342494609,0.12984268,104710.0,104700.0,0.2264943]
[1734342494789,0.12984268,104710.0,104700.0,0.3504666]
[1734342496586,0.00014268,104710.0,104700.0,0.3504666]
[1734342506017,0.00014268,104710.0,104700.0,0.41245275]
[1734342506706,0.00014268,104710.0,104700.0,0.3504666]
[1734342509153,0.00014268,104710.0,104700.0,0.56300588]
[1734342509563,0.00014268,104710.0,104700.0,0.56396431]
[1734342510194,0.00014268,104710.0,104700.0,0.62595046]
[1734342511006,0.00014268,104710.0,104700.0,0.56396431]
[1734342511270,0.00014268,104710.0,104700.0,0.62595046]
[1734342512558,0.00014268,104710.0,104700.0,0.56396431]
[1734342515737,0.00014268,104710.0,104700.0,0.31189338]
[1734342515738,0.07624268,104710.0,104700.0,0.31189338]
[1734342516034,0.07624268,104710.0,104700.0,0.43586568]
[1734342516035,0.22003338,104710.0,104700.0,0.43586568]
[1734342517922,0.22003338,104710.0,104700.0,0.19649708]
[1734342518122,0.22003338,104710.0,104700.0,0.2740586]
[1734342518347,0.22003338,104710.0,104700.0,0.3504666]
[1734342523109,0.22954255,104710.0,104700.0,0.3504666]
[1734342525747,0.22003338,104710.0,104700.0,0.3504666]
[1734342527849,0.22008338,104710.0,104700.0,0.3504666]
[1734342529939,0.22008338,104710.0,104700.0,0.2264943]
[1734342530173,0.22008338,104710.0,104700.0,0.3504666]
[1734342534749,0.22008338,104710.0,104700.0,0.0764943]
[1734342534750,0.83859002,104710.0,104700.0,0.0764943]
[1734342534951,0.92441158,104710.0,104700.0,8.63e-05]
[1734342535146,1.24414692,104710.0,104700.0,8.63e-05]
[1734342535362,1.59452239,104710.0,104700.0,8.63e-05]
[1734342535669,1.46579005,104710.0,104700.0,8.63e-05]
[1734342536233,1.59439874,104710.0,104700.0,8.63e-05]
[1734342537248,1.46554329,104710.0,104700.0,8.63e-05]
[1734342537987,0.92414329,104710.0,104700.0,8.63e-05]
[1734342538200,0.98612944,104710.0,104700.0,8.63e-05]
[1734342538412,0.92414329,104710.0,104700.0,8.63e-05]
[1734342540752,0.92356187,104710.0,104700.0,8.63e-05]
[1734342541203,0.75228682,104710.0,104700.0,8.63e-05]
[1734342543755,0.62383054,104710.0,104700.0,8.63e-05]
[1734342544028,0.3557209,104710.0,104700.0,0.06207245]
[1734342544256,0.46108638,104710.0,104700.0,0.13848045]
[1734342544386,0.46108638,104710.0,104700.0,8.63e-05]
[1734342544592,0.55526164,104710.0,104700.0,8.63e-05]
[1734342544992,0.60526164,104710.0,104700.0,8.63e-05]
[1734342545199,0.55526164,104710.0,104700.0,8.63e-05]
[1734342545403,0.55526164,104710.0,104700.0,0.2004666]
[1734342545404,0.22008338,104710.0,104700.0,0.2004666]
[1734342545826,0.17058338,104710.0,104700.0,0.2004666]
[1734342547324,0.09448338,104710.0,104700.0,0.2004666]
[1734342549262,0.09448338,104710.0,104700.0,0.2789666]
[1734342550026,0.09448338,104710.0,104700.0,0.4289666]
[1734342551655,0.09448338,104710.0,104700.0,0.49095275]
[1734342551832,0.09448338,104710.0,104700.0,0.4289666]
[1734342552241,0.00019268,104710.0,104700.0,0.49095275]
[1734342552437,0.00019268,104710.0,104700.0,0.51395275]
[1734342553415,0.00019268,104710.0,104700.0,0.4519666]
[1734342556167,0.00019268,104710.0,104700.0,0.51395275]
[1734342558581,0.00019268,104710.0,104700.0,0.4519666]
[1734342559556,0.00019268,104710.0,104700.0,0.3504666]
[1734342561837,0.00019268,104710.0,104700.0,0.41245275]
[1734342563806,0.00019268,104710.0,104700.0,0.43545275]
[1734342581429,0.00019268,104710.0,104700.0,0.2494943]
[1734342581624,0.00019268,104710.0,104700.0,0.31148045]
[1734342581893,0.00019268,104710.0,104700.0,0.43545275]
[1734342583708,0.00019268,104710.0,104700.0,0.2494943]
[1734342584080,0.00019268,104710.0,104700.0,0.43545275]
[1734342588355,0.07989268,104720.0,104710.0,0.226401]
[1734342588637,0.17418338,104720.0,104710.0,0.3503733]
[1734342592390,0.17426968,104720.0,104710.0,0.3503733]
[1734342593746,0.26423152,104740.0,104720.0,0.07639]
[1734342593951,0.26423152,104740.0,104730.0,0.06198615]
[1734342593952,0.45524479,104740.0,104730.0,0.06198615]
[1734342594155,0.54953549,104740.0,104730.0,0.06198615]
[1734342594357,0.42107645,104740.0,104730.0,0.06198615]
[1734342594568,0.54953549,104740.0,104730.0,0.06198615]
[1734342595930,0.55897564,104740.0,104730.0,0.06198615]
[1734342596736,0.68137564,104740.0,104730.0,0.06198615]
[1734342598183,0.59586689,104740.0,104730.0,0.06198615]
[1734342600997,0.1321,104720.0,104710.0,0.13838315]
[1734342601178,0.4173757,104720.0,104710.0,0.06198615]
[1734342601382,0.0829,104710.0,104700.0,0.1528943]
[1734342601589,0.1771907,104710.0,104700.0,0.13847545]
[1734342601792,0.1771907,104710.0,104700.0,0.2004616]
[1734342602315,0.1771907,104710.0,104700.0,0.3504616]
[1734342603970,0.1771907,104710.0,104700.0,0.0764893]
[1734342604148,0.1771907,104710.0,104700.0,0.2004616]
[1734342608857,0.18656058,104710.0,104700.0,0.2004616]
[1734342617178,0.10366058,104710.0,104700.0,0.2004616]
[1734342618582,0.10366058,104710.0,104700.0,0.1239723]
[1734342618756,0.10366058,104710.0,104700.0,0.2003773]
[1734342622156,0.10366058,104710.0,104690.0,0.232722]
[1734342622388,0.10366058,104710.0,104700.0,0.1239723]
[1734342622808,0.10366058,104710.0,104700.0,0.2003773]
[1734342626098,0.10366058,104710.0,104700.0,0.13839115]
[1734342626317,0.37526358,104710.0,104700.0,0.076405]
[1734342626527,0.37526358,104710.0,104700.0,0.13839115]
[1734342626734,0.18426058,104710.0,104700.0,0.13856375]
[1734342629015,0.18430058,104710.0,104700.0,0.13856375]
[1734342632583,0.18430058,104710.0,104700.0,0.0765776]
[1734342632923,0.18430058,104710.0,104700.0,0.13856375]
[1734342635024,0.27847584,104710.0,104700.0,0.0765776]
[1734342635638,0.18430058,104710.0,104700.0,0.0765776]
[1734342638529,0.18438688,104710.0,104700.0,0.0765776]
[1734342639496,0.18438688,104710.0,104700.0,0.13856375]
[1734342641519,0.23438688,104710.0,104700.0,0.13856375]
[1734342643674,0.32003804,104710.0,104700.0,0.13856375]
[1734342643904,0.4142133,104710.0,104700.0,0.13856375]
[1734342644156,0.32003804,104710.0,104700.0,0.13856375]
[1734342645576,0.44851479,104710.0,104700.0,0.13856375]
[1734342646081,0.44902783,104710.0,104700.0,0.13856375]
[1734342647367,0.18964326,104710.0,104700.0,0.2759499]
[1734342647608,0.00949618,104710.0,104700.0,0.4710499]
[1734342647840,0.00949618,104710.0,104700.0,0.53303605]
[1734342647841,0.0001263,104710.0,104700.0,0.53303605]
[1734342648038,0.0001263,104710.0,104700.0,0.4710499]
[1734342658157,0.0001263,104710.0,104700.0,0.4710499]
[1734342659570,0.094417,104710.0,104700.0,0.3505499]
[1734342659773,0.094417,104710.0,104700.0,0.28856375]
[1734342660244,0.094417,104710.0,104700.0,0.3505499]
[1734342668393,0.0001263,104710.0,104700.0,0.3505499]
[1734342668572,0.0001263,104710.0,104700.0,0.4274499]
[1734342674078,0.0001263,104710.0,104700.0,0.2265776]
[1734342674315,0.094417,104710.0,104700.0,0.28856375]
[1734342680619,0.094417,104710.0,104700.0,0.3505499]
[1734342682820,0.094417,104710.0,104700.0,0.28856375]
[1734342684101,0.094417,104710.0,104700.0,0.3505499]
[1734342684300,0.094417,104710.0,104700.0,0.28856375]
[1734342684413,0.094417,104710.0,104700.0,0.3505499]
[1734342685028,0.094417,104710.0,104700.0,0.28856375]
[1734342686261,0.094417,104710.0,104700.0,0.3505499]
[1734342686461,0.094417,104710.0,104700.0,0.4279499]
[1734342687221,0.0001263,104710.0,104700.0,0.4279499]
[1734342694514,0.0001263,104710.0,104700.0,0.45501697]
[1734342694716,0.0001263,104710.0,104700.0,0.54038824]
[1734342694895,0.0001263,104710.0,104700.0,0.8850877]
[1734342695716,0.0001263,104710.0,104700.0,0.85802063]
[1734342697438,0.0001263,104710.0,104700.0,0.68727808]
[1734342699723,0.0001263,104710.0,104700.0,0.47870392]
[1734342699956,0.0001263,104710.0,104700.0,0.55510892]
[1734342700370,0.0001263,104710.0,104700.0,0.46973765]
[1734342701135,0.0001263,104710.0,104700.0,0.3618515]
[1734342701335,0.0001263,104710.0,104700.0,0.2844515]
[1734342703029,0.0001263,104710.0,104700.0,0.34643765]
[1734342704092,0.0001263,104710.0,104700.0,0.2844515]
[1734342705376,0.094417,104710.0,104700.0,0.22246535]
[1734342705586,0.223117,104710.0,104700.0,0.22246535]
[1734342706411,0.223117,104710.0,104700.0,0.2844515]
[1734342707263,0.01172051,104710.0,104700.0,0.34643765]
[1734342707478,0.0001263,104710.0,104700.0,0.34643765]
[1734342712352,0.0001263,104710.0,104700.0,0.36547389]
[1734342712561,3e-07,104710.0,104700.0,0.89551451]
[1734342712762,3e-07,104710.0,104700.0,1.59551451]
[1734342712898,3e-07,104710.0,104700.0,1.64551451]
[1734342713114,3e-07,104710.0,104700.0,2.05425321]
[1734342713311,8.63e-05,104730.0,104720.0,0.373294]
[1734342713312,6e-07,104730.0,104720.0,0.373294]
[1734342713522,6e-07,104730.0,104720.0,1.16432557]
[1734342713710,6e-07,104730.0,104720.0,1.03656936]
[1734342714055,6e-07,104730.0,104720.0,0.97458321]
[1734342714472,6e-07,104730.0,104720.0,0.88029251]
[1734342715572,6e-07,104730.0,104720.0,0.7100317]
[1734342717397,6e-07,104730.0,104720.0,0.36783125]
[1734342717571,6e-07,104730.0,104720.0,0.4093361]
[1734342717783,6e-07,104730.0,104720.0,0.3242663]
[1734342718957,6e-07,104730.0,104720.0,0.2769663]
[1734342719528,6e-07,104730.0,104720.0,0.4269663]
[1734342719730,6e-07,104730.0,104720.0,0.226394]
[1734342719907,6e-07,104730.0,104720.0,0.28838015]
[1734342720136,6e-07,104730.0,104720.0,0.3503663]
[1734342721580,6e-07,104730.0,104720.0,0.226394]
[1734342721769,6e-07,104730.0,104720.0,0.28838015]
[1734342723031,0.2226913,104730.0,104720.0,0.076394]
[1734342723846,0.2226913,104730.0,104720.0,0.13838015]
[1734342725149,0.2226913,104730.0,104720.0,0.1425693]
[1734342725553,0.2226913,104730.0,104720.0,0.08058315]
[1734342726779,0.30342968,104730.0,104720.0,0.00418915]
[1734342726977,0.4136583,104730.0,104720.0,0.00418915]
[1734342730700,0.4136583,104730.0,104720.0,0.00436175]
[1734342741040,0.7617583,104730.0,104720.0,0.00436175]
[1734342742096,0.8117583,104730.0,104720.0,0.00436175]
[1734342745804,0.8117583,104730.0,104710.0,0.12828989]
[1734342745997,0.0942907,104720.0,104710.0,0.12828589]
[1734342748007,0.0942907,104720.0,104710.0,0.13837787]
[1734342749383,0.10578954,104720.0,104710.0,0.13837787]
[1734342753492,0.1999648,104720.0,104710.0,0.13837787]
[1734342753691,0.10578954,104720.0,104710.0,0.13837787]
[1734342754074,0.10578954,104720.0,104710.0,0.13846417]
[1734342755946,0.10578954,104720.0,104710.0,0.06198087]
[1734342756272,0.10578954,104720.0,104710.0,0.13837787]
[1734342757435,0.29677454,104720.0,104710.0,0.06198087]
[1734342757994,0.37477454,104720.0,104710.0,0.06198087]
[1734342758487,0.078,104710.0,104690.0,0.1147866]
[1734342758691,0.2853117,104700.0,104690.0,0.0001726]
[1734342758837,0.4110117,104700.0,104690.0,0.0001726]
[1734342759036,0.4610117,104700.0,104690.0,0.0001726]
[1734342759245,0.55031647,104700.0,104690.0,0.06215347]
[1734342759934,0.55031647,104700.0,104690.0,0.06220975]
[1734342761008,0.55031647,104700.0,104690.0,0.00022888]
[1734342762153,0.89841647,104700.0,104690.0,0.00022888]
[1734342763033,0.89845647,104700.0,104690.0,0.00022888]
[1734342764819,0.92133617,104700.0,104690.0,0.00022888]
[1734342765016,1.00480607,104700.0,104690.0,0.00022888]
[1734342765245,0.9428252,104700.0,104690.0,0.00022888]
[1734342765451,0.93084433,104700.0,104690.0,0.00022888]
[1734342765656,0.75250624,104700.0,104690.0,0.00022888]
[1734342765852,0.88084433,104700.0,104690.0,0.00022888]
[1734342766054,1.10196178,104700.0,104690.0,0.00022888]
[1734342766214,0.84153956,104700.0,104690.0,0.00022888]
[1734342766418,0.71320147,104700.0,104690.0,0.00022888]
[1734342767788,0.71320147,104700.0,104690.0,0.06220975]
[1734342767789,0.60750925,104700.0,104690.0,0.06220975]
[1734342768002,0.55980925,104700.0,104690.0,0.10220975]
[1734342768249,0.82235053,104700.0,104690.0,0.10220975]
[1734342768872,0.91652579,104700.0,104690.0,0.04022888]
[1734342772593,1.06666733,104700.0,104690.0,0.04022888]
[1734342772766,0.91652579,104700.0,104690.0,0.04022888]
[1734342774226,0.72595337,104700.0,104690.0,0.04022888]
[1734342774575,0.81145604,104700.0,104690.0,0.04022888]
[1734342774794,0.93971004,104700.0,104690.0,0.04022888]
[1734342774973,0.87772917,104700.0,104690.0,0.04022888]
[1734342775189,0.93971004,104700.0,104690.0,0.04022888]
[1734342775948,0.87772917,104700.0,104690.0,0.04022888]
[1734342776990,0.87790177,104700.0,104690.0,0.04022888]
[1734342777210,0.74964777,104700.0,104690.0,0.02910683]
[1734342780184,0.74958577,104700.0,104690.0,0.02910683]
[1734342782466,0.76828157,104700.0,104690.0,0.02910683]
[1734342783277,0.6828409,104700.0,104690.0,0.02910683]
[1734342787273,0.768271,104700.0,104690.0,0.02910683]
[1734342787608,0.76826841,104700.0,104690.0,0.02910683]
[1734342789000,0.76826841,104700.0,104690.0,0.02919313]
[1734342794373,0.89640968,104700.0,104690.0,0.02919313]
[1734342796612,1.06726471,104700.0,104690.0,0.02919313]
[1734342797151,1.16180358,104700.0,104690.0,0.02919313]
[1734342797989,1.06726471,104700.0,104690.0,0.02919313]
[1734342798777,0.97308945,104700.0,104690.0,0.02919313]
[1734342798979,0.78084694,104700.0,104690.0,0.09123757]
[1734342799179,0.48185064,104700.0,104690.0,0.16893757]
[1734342799415,0.48185064,104700.0,104690.0,0.10689313]
[1734342799612,0.39642313,104700.0,104690.0,0.10689313]
[1734342799965,0.48185064,104700.0,104690.0,0.10689313]
[1734342800313,0.572672,104700.0,104690.0,0.10689313]
[1734342801260,0.70081327,104700.0,104690.0,0.10689313]
[1734342802453,0.93315058,104700.0,104690.0,0.10689313]
[1734342803247,1.14671937,104700.0,104690.0,0.10689313]
[1734342804221,1.06129186,104700.0,104690.0,0.10689313]
[1734342804421,0.99473371,104700.0,104690.0,0.10689313]
[1734342804717,0.99473371,104700.0,104690.0,0.02919313]
[1734342804718,1.13791972,104700.0,104690.0,0.02919313]
[1734342804919,0.83858505,104700.0,104690.0,0.02919313]
[1734342805171,0.88129881,104700.0,104690.0,0.02919313]
[1734342810042,0.241058,104680.0,104670.0,0.1288863]
[1734342810251,0.68563363,104680.0,104670.0,0.12905528]
[1734342810467,0.90012287,104680.0,104670.0,0.12905528]
[1734342813089,1.24822287,104680.0,104670.0,0.12905528]
[1734342813928,1.24802963,104680.0,104670.0,0.12905528]
[1734342814488,1.272863,104680.0,104670.0,0.12905528]
[1734342815654,1.28344548,104680.0,104670.0,0.12905528]
[1734342816472,1.06903676,104680.0,104670.0,0.12905528]
[1734342817530,1.12995073,104680.0,104670.0,0.12905528]
[1734342817736,0.66736575,104680.0,104670.0,0.22356891]
[1734342817935,0.72977852,104680.0,104670.0,0.22356891]
[1734342818138,0.72977852,104680.0,104670.0,0.12905528]
[1734342819153,0.38167852,104680.0,104670.0,0.12905528]
[1734342819560,0.38167852,104680.0,104670.0,0.09451363]
[1734342819561,0.10487318,104680.0,104670.0,0.09451363]
[1734342819798,0.10487318,104680.0,104670.0,0.30183663]
[1734342822616,0.10487318,104680.0,104670.0,0.42813663]
[1734342824358,0.10487318,104680.0,104670.0,0.42822293]
[1734342825147,0.09932418,104680.0,104670.0,0.42822293]
[1734342826212,0.09932418,104680.0,104670.0,0.39573157]
[1734342830045,0.09932418,104680.0,104670.0,0.10197567]
[1734342830299,0.09932418,104680.0,104670.0,0.15929867]
[1734342835104,0.09932418,104680.0,104670.0,0.0972764]
[1734342835300,0.09932418,104680.0,104670.0,0.0574093]
[1734342835608,0.09932418,104680.0,104670.0,0.11943157]
[1734342835809,0.09949678,104680.0,104670.0,0.11943157]
[1734342838660,0.09949678,104680.0,104670.0,0.30485384]
[1734342838661,0.0889143,104680.0,104670.0,0.30485384]
[1734342839625,0.0889143,104680.0,104670.0,0.39283157]
[1734342841174,0.0889143,104680.0,104670.0,0.31493157]
[1734342841783,0.0889143,104680.0,104670.0,0.1500863]
[1734342841984,0.1718143,104680.0,104670.0,0.1500863]
[1734342842144,0.3628723,104680.0,104670.0,0.21210857]
[1734342845146,0.3628723,104680.0,104670.0,0.06210857]
[1734342845524,0.42433295,104680.0,104670.0,0.06210857]
[1734342848455,0.3628723,104680.0,104670.0,0.06210857]
[1734342849411,0.7109723,104680.0,104670.0,0.06210857]
[1734342849622,0.7110123,104680.0,104670.0,0.06210857]
[1734342856539,0.0943307,104680.0,104670.0,0.06210857]
[1734342857123,0.2853887,104680.0,104670.0,0.06210857]
[1734342859369,0.2855613,104680.0,104670.0,0.06210857]
[1734342859613,0.3632613,104680.0,104670.0,0.06210857]
[1734342861073,0.42449524,104680.0,104670.0,8.63e-05]
[1734342864522,0.3632613,104680.0,104670.0,8.63e-05]
[1734342866058,0.1722033,104680.0,104670.0,8.63e-05]
[1734342866238,0.0945033,104680.0,104670.0,0.11943157]
[1734342866452,0.18032952,104680.0,104670.0,0.11943157]
[1734342869620,0.26332952,104680.0,104670.0,0.11943157]
[1734342870051,0.26332952,104680.0,104670.0,0.0574093]
[1734342870052,0.45438752,104680.0,104670.0,0.0574093]
[1734342870264,0.60789072,104680.0,104670.0,8.63e-05]
[1734342870684,0.47915267,104680.0,104670.0,8.63e-05]
[1734342870859,0.2633308,104680.0,104670.0,0.11943157]
[1734342871431,0.39207205,104680.0,104670.0,0.11943157]
[1734342872042,0.58313005,104680.0,104670.0,0.06210857]
[1734342872160,0.58313005,104680.0,104670.0,8.63e-05]
[1734342874893,0.58313005,104680.0,104670.0,0.06210857]
[1734342875248,0.58314718,104680.0,104670.0,0.06210857]
[1734342877066,0.67732244,104680.0,104670.0,0.06210857]
[1734342877281,0.67732244,104680.0,104670.0,8.63e-05]
[1734342881705,0.58314718,104680.0,104670.0,8.63e-05]
[1734342881930,0.80481589,104680.0,104670.0,8.63e-05]
[1734342882434,0.86792919,104680.0,104670.0,8.63e-05]
[1734342884022,0.99668073,104680.0,104670.0,8.63e-05]
[1734342884545,0.9173292,104680.0,104670.0,8.63e-05]
[1734342885306,0.82667932,104680.0,104670.0,8.63e-05]
[1734342885875,0.74566049,104680.0,104670.0,8.63e-05]
[1734342886826,0.69566049,104680.0,104670.0,0.06210857]
[1734342887058,0.67259334,104680.0,104670.0,0.11943157]
[1734342887296,0.67259334,104680.0,104670.0,0.26185384]
[1734342887297,0.37217543,104680.0,104670.0,0.26185384]
[1734342887552,0.37217543,104680.0,104670.0,0.19983157]
[1734342887553,0.1576166,104680.0,104670.0,0.19983157]
[1734342888338,0.0945033,104680.0,104670.0,0.19983157]
[1734342890650,0.1803184,104680.0,104670.0,0.0574093]
[1734342890855,0.30904106,104680.0,104670.0,0.11943157]
[1734342895838,0.50009906,104680.0,104670.0,0.06210857]
[1734342896692,0.59427432,104680.0,104670.0,0.06210857]
[1734342897318,0.50009906,104680.0,104670.0,0.06210857]
[1734342897745,0.50009845,104680.0,104670.0,0.06210857]
[1734342899765,0.30904045,104680.0,104670.0,0.11943157]
[1734342901847,0.18031816,104680.0,104670.0,0.11943157]
[1734342903896,0.30904045,104680.0,104670.0,0.11943157]
[1734342904648,0.59427371,104680.0,104670.0,0.11943157]
[1734342904845,0.30904045,104680.0,104670.0,0.11943157]
[1734342917830,0.18031816,104680.0,104670.0,0.06202227]
[1734342918237,0.0945033,104680.0,104670.0,0.11934527]
[1734342919253,0.0945033,104680.0,104670.0,0.06202227]
[1734342919399,0.0945033,104680.0,104670.0,0.11934527]
[1734342937355,0.0002126,104680.0,104670.0,0.41176754]
[1734342938940,0.0002126,104680.0,104670.0,0.49743351]
[1734342940211,0.0002126,104680.0,104670.0,0.41176754]
[1734342940822,0.0002126,104680.0,104670.0,0.49743351]
[1734342941241,0.0002126,104680.0,104670.0,0.41176754]
[1734342942428,0.0002126,104680.0,104670.0,0.34974527]
[1734342942830,0.0002126,104680.0,104670.0,0.41176754]
[1734342950252,0.0002126,104680.0,104670.0,0.41185384]
[1734342953164,0.0002126,104680.0,104670.0,0.49718558]
[1734342953737,0.1301252,104700.0,104690.0,0.11933427]
[1734342953917,0.2244159,104700.0,104690.0,0.11933427]
[1734342954581,0.23447561,104700.0,104690.0,0.11933427]
[1734342955400,0.18467561,104700.0,104690.0,0.18135654]
[1734342955604,2.52e-05,104700.0,104690.0,0.36021899]
[1734342955825,2.52e-05,104700.0,104690.0,0.43706383]
[1734342959513,2.52e-05,104700.0,104690.0,0.40915654]
[1734342961585,2.52e-05,104700.0,104690.0,0.33135654]
[1734342962132,2.52e-05,104700.0,104690.0,0.26933427]
[1734342963964,0.1717159,104700.0,104690.0,0.207312]
[1734342964385,0.1717159,104700.0,104690.0,0.26933427]
[1734342964994,0.2176159,104700.0,104690.0,0.26933427]
[1734342965451,0.2176159,104700.0,104680.0,0.114627]
[1734342965655,0.1761907,104690.0,104680.0,0.207313]
[1734342965860,0.1761907,104690.0,104680.0,0.26933527]
[1734342966280,0.2235907,104690.0,104680.0,0.057313]
[1734342966491,0.0819,104680.0,104670.0,0.0575044]
[1734342966694,0.1761907,104680.0,104670.0,0.0575044]
[1734342966910,0.21765477,104680.0,104670.0,0.11952667]
[1734342967112,0.21765477,104680.0,104670.0,0.11942657]
[1734342967521,0.1761907,104680.0,104670.0,0.11942657]
[1734342967929,0.1761907,104680.0,104670.0,0.26942657]
[1734342968104,0.1761907,104680.0,104670.0,0.26442657]
[1734342969788,0.1761907,104680.0,104670.0,0.16445046]
[1734342969988,0.1761907,104680.0,104670.0,0.06202227]
[1734342970192,0.1761907,104680.0,104670.0,0.11934127]
[1734342971930,0.1761907,104680.0,104670.0,0.26934127]
[1734342972546,0.18614523,104680.0,104670.0,0.26934127]
[1734342974330,0.3323,104690.0,104670.0,0.38868254]
[1734342974533,0.4265907,104690.0,104680.0,0.12404454]
[1734342974907,0.4265907,104690.0,104680.0,0.18136154]
[1734342975578,0.1735907,104690.0,104680.0,0.18136154]
[1734342975793,0.1735907,104690.0,104680.0,0.33136154]
[1734342975794,0.0942907,104690.0,104680.0,0.33136154]
[1734342976004,0.10418245,104690.0,104680.0,0.33136154]
[1734342977456,0.0942907,104690.0,104680.0,0.33136154]
[1734342981132,0.1433907,104690.0,104680.0,0.33136154]
[1734342981513,0.1433907,104690.0,104680.0,0.26933927]
[1734342982137,0.1433907,104690.0,104680.0,0.33136154]
[1734342982546,0.1433907,104690.0,104680.0,0.26933927]
[1734342982695,0.2215907,104690.0,104680.0,0.26933927]
[1734342984404,0.2215907,104690.0,104680.0,0.33136154]
[1734342984821,0.2215907,104690.0,104680.0,0.26933927]
[1734342986194,0.2217633,104690.0,104680.0,0.26933927]
[1734342986549,0.2217633,104690.0,104680.0,0.33136154]
[1734342986751,0.2217633,104690.0,104680.0,0.26933927]
[1734342987347,0.2217633,104690.0,104680.0,0.33136154]
[1734342988314,0.2217633,104690.0,104680.0,0.207317]
[1734342988491,0.0813,104680.0,104670.0,0.23406657]
[1734342988724,0.1755907,104680.0,104670.0,0.17674657]
[1734342989257,0.1755907,104680.0,104670.0,0.11942757]
[1734342989928,0.1755907,104680.0,104670.0,0.26942757]
[1734342993625,0.18545482,104680.0,104670.0,0.26942757]
[1734342995362,0.27269556,104680.0,104670.0,8.63e-05]
[1734342995565,0.37651282,104680.0,104670.0,8.63e-05]
[1734342995765,0.42301282,104680.0,104670.0,8.63e-05]
[1734342996026,0.42301282,104680.0,104660.0,0.52111927]
[1734342996213,0.0942907,104670.0,104660.0,0.61384748]
[1734342996595,0.1772907,104670.0,104660.0,0.61384748]
[1734342997422,0.1772907,104670.0,104660.0,0.35517963]
[1734343001079,0.1772907,104670.0,104660.0,0.08583336]
[1734343001080,0.47887553,104670.0,104660.0,0.08583336]
[1734343001287,0.7354127,104670.0,104660.0,0.08583336]
[1734343001496,1.00303497,104670.0,104660.0,0.08583336]
[1734343001716,0.95303497,104670.0,104660.0,0.08583336]
[1734343001918,0.8910127,104670.0,104660.0,0.08583336]
[1734343003573,1.12603497,104670.0,104660.0,0.08583336]
[1734343003803,0.414994,104660.0,104650.0,8.64e-05]
[1734343004011,0.84902797,104660.0,104650.0,8.64e-05]
[1734343004620,0.76344768,104660.0,104650.0,8.64e-05]
[1734343007696,0.78644768,104660.0,104650.0,8.64e-05]
[1734343008911,0.73644768,104660.0,104650.0,8.64e-05]
[1734343009120,0.78644768,104660.0,104650.0,8.64e-05]
[1734343009743,0.73644768,104660.0,104650.0,8.64e-05]
[1734343010793,0.75586983,104660.0,104650.0,8.64e-05]
[1734343011415,0.76570964,104660.0,104650.0,8.64e-05]
[1734343011620,0.76588224,104660.0,104650.0,8.64e-05]
[1734343013198,0.65228483,104660.0,104650.0,8.64e-05]
[1734343013346,0.65228483,104660.0,104650.0,0.00425266]
[1734343013562,0.41929711,104660.0,104650.0,0.06210867]
[1734343013908,0.41929711,104660.0,104650.0,0.06639968]
[1734343014446,0.67489711,104660.0,104650.0,0.06639968]
[1734343015046,0.67489711,104660.0,104650.0,0.00437741]
[1734343024441,0.76907237,104660.0,104650.0,0.00437741]
[1734343025334,0.67489711,104660.0,104650.0,0.00437741]
[1734343029083,0.67489711,104660.0,104640.0,0.06202227]
[1734343029304,0.0942907,104650.0,104640.0,0.11935927]
[1734343029509,0.0942907,104650.0,104640.0,0.06202227]
[1734343034607,0.2854037,104650.0,104640.0,0.06210857]
[1734343035020,0.36187859,104650.0,104640.0,0.06210857]
[1734343035232,0.2854037,104650.0,104640.0,0.06210857]
[1734343039615,0.4113037,104650.0,104640.0,8.63e-05]
[1734343041432,0.4968019,104650.0,104640.0,8.63e-05]
[1734343041629,0.7024019,104650.0,104640.0,8.63e-05]
[1734343043335,0.7524019,104650.0,104640.0,8.63e-05]
[1734343043540,0.97482447,104650.0,104640.0,8.63e-05]
[1734343043783,1.14582088,104650.0,104640.0,8.63e-05]
[1734343045597,1.2740682,104650.0,104640.0,8.63e-05]
[1734343046419,1.29831602,104650.0,104640.0,8.63e-05]
[1734343046572,1.29848862,104650.0,104640.0,8.63e-05]
[1734343046772,1.29985459,104650.0,104640.0,8.63e-05]
[1734343048416,1.29985459,104650.0,104610.0,0.21202227]
[1734343048417,0.27116,104630.0,104610.0,0.21202227]
[1734343048689,0.0942907,104620.0,104610.0,0.21314688]